Cogmind - Beta 13 *** ADVENTURER MODE // 2024.06.08 @ 18:09:04 Player: Deep Beef Result: Destroyed by 57-PG3(R) with Subdweller Shrapnel Launcher Performance ------------- Evolutions (0) 0 Regions Visited (2) 400 Robots Destroyed (14) 70 Value Destroyed (258) 258 Prototype IDs (2) 40 Alien Tech Used (0) 0 Bonus (0) 0 TOTAL SCORE: 768 Bonus ------- None Cogmind --------- Core Integrity 0/250 Matter 300/300 Energy 73/100 System Corruption 0% Temperature Cool (0) Movement Core (100) Ox1 Location -10/Subcaves Parts ------- > --- POWER (1) -------- (None) > --- PROPULSION (2) --- (None) > --- UTILITY (2) ------ Small Storage Unit > --- WEAPON (2) ------- (None) > --- INVENTORY (8) ---- Improved Ion Engine Improved Ion Engine Scrap Shield EM Shotgun EM Shotgun Improved Light Cannon Rocket Launcher Peak State ------------ > --- POWER ------------ Improved Ion Engine > --- PROPULSION ------- Aluminum Leg Aluminum Leg > --- UTILITY ---------- Small Storage Unit Structural Scanner > --- WEAPON ----------- Improved Light Cannon Improved Light Cannon > --- INVENTORY -------- Improved Ion Engine Improved Ion Engine Weapon Shielding EM Shotgun EM Shotgun Improved Light Cannon Improved Light Cannon Rocket Launcher [Rating: 11] Favorites ----------- Power Improved Ion Engine Engine Improved Ion Engine Propulsion Aluminum Leg Leg Aluminum Leg Utility Small Storage Unit Device Structural Scanner Storage Small Storage Unit Weapon Improved Light Cannon Energy Gun EM Pulse Gun Ballistic Gun Light Assault Rifle Ballistic Cannon Improved Light Cannon Build | -11 -10 -10 ------- Run | Yrd Mat Sub Slots Evolved . | . . . Power . | . . . Propulsion . | . . . Utility . | . . . Weapon . | . . . Parts Attached 15 | 6 6 3 Power 2 | 1 1 . Engine 2 | 1 1 . Core . | . . . Reactor . | . . . Propulsion 6 | 2 2 2 Treads . | . . . Leg 6 | 2 2 2 Wheel . | . . . Hover . | . . . Flight . | . . . Utility 2 | 1 1 . Device 1 | . 1 . Storage 1 | 1 . . Processor . | . . . Hackware . | . . . Protection . | . . . Artifact . | . . . Weapon 5 | 2 2 1 Energy Gun 1 | 1 . . Energy Cannon . | . . . Ballistic Gun 1 | 1 . . Ballistic Cannon 3 | . 2 1 Launcher . | . . . Special Weapon . | . . . Impact Weapon . | . . . Slashing Weapon . | . . . Piercing Weapon . | . . . Special Melee Weapon . | . . . Unidentified Prototypes . | . . . Parts Lost 7 | . . 7 Power 1 | . . 1 Propulsion 3 | . . 3 Utility 1 | . . 1 Weapon 2 | . . 2 Highest Loss Streak 7 | . . 7 To Critical Strikes 1 | . . 1 Average Slot Usage (%) 91 | . 91 91 Engine 13 | . 14 11 Leg 27 | . 28 27 Device 6 | . 5 13 Storage 14 | . 14 14 Ballistic Cannon 26 | . 26 25 Naked Turns . | . . . Heaviest Build 21 | 11 21 21 Greatest Support 30 | 20 20 30 Greatest Overweight (x) 3 | 3 1 1 Average Overweight (x) . | . . . Largest Inventory Capacity 8 | 8 8 8 Average Capacity 7 | 7 8 8 Most Carried 8 | 2 8 8 Average Carried 7 | . 7 7 Final Capacity 8 | 8 8 8 Final Carried 8 | 2 8 8 Class Distribution -------------------- 100% | Mutant Dominant Class ---------------- Mutant | -10/Materials Mutant | -10/Subcaves Resources | -11 -10 -10 ----------- Run | Yrd Mat Sub Matter Collected 578 | 241 271 66 Remotely . | . . . Salvage Created 197 | . 197 . Parts 16 | . 16 . Haulers Intercepted 1 | . 1 . Recyclers Shooed . | . . . Parts Field Recycled . | . . . Retrieved Matter . | . . . Parts Self-Destructed . | . . . Prevented . | . . . Kills | -11 -10 -10 ------- Run | Yrd Mat Sub Combat Hostiles Destroyed 9 | . 9 . Cannons 9 | . 9 . Classes Destroyed 5 | . 5 . Hauler 1 | . 1 . Mechanic 1 | . 1 . Watcher 3 | . 3 . Swarmer 6 | . 6 . Grunt 3 | . 3 . Best Kill Streak 4 | . 4 . Combat Bots Only 3 | . 3 . Max Kills in Single Turn 2 | . 2 . Gunslinging . | . . . Exploded . | . . . Melee . | . . . Uniques/NPCs Destroyed . | . . . Combat | -11 -10 -10 -------- Run | Yrd Mat Sub Hostile Shots Fired 90 | . 33 57 Missed 24 | . 8 16 Damage Taken 1108 | . 196 912 Core 261 | . 19 242 Absorbed by Shields . | . . . Ignored by Resistances 318 | . 62 256 Core Remaining (%) 100 | 100 . . Volleys Fired 31 | . 27 4 Largest 2 | . 2 2 Hottest 78 | . 78 78 Shots Fired 62 | . 54 8 Gun . | . . . Cannon 62 | . 54 8 Launcher . | . . . Special . | . . . Kinetic 62 | . 54 8 Thermal . | . . . Explosive . | . . . Electromagnetic . | . . . Robot Hit Streak 21 | . 21 7 Robot Miss Streak 3 | . 3 1 Penetration Max . | . . . Secondary Targets . | . . . Shots Hit Robots 40 | . 33 7 Core Hits 16 | . 14 2 Critical Kills . | . . . Critical Parts Destroyed . | . . . Critical Strikes 2 | . 2 . Blast 2 | . 2 . Melee Attacks . | . . . Impact . | . . . Slashing . | . . . Piercing . | . . . Sneak Attacks . | . . . Combat Hostiles . | . . . Follow-up Attacks . | . . . Damage Inflicted 917 | . 774 143 Guns . | . . . Cannons 910 | . 767 143 Explosions . | . . . Melee . | . . . Ramming 7 | . 7 . Kinetic 910 | . 767 143 Thermal . | . . . Explosive . | . . . Electromagnetic . | . . . Impact . | . . . Slashing . | . . . Piercing . | . . . Highest Corruption . | . . . Average Corruption . | . . . Corruption Purged . | . . . Corruption Blocked . | . . . Overload Shots . | . . . Overflow Damage 50 | . 50 . Projectiles 50 | . 50 . Explosions . | . . . Melee . | . . . Knockbacks 6 | . 5 1 Impact . | . . . Kinetic 6 | . 5 1 Secondary . | . . . Self-Inflicted Damage . | . . . Shots . | . . . Rammed . | . . . Targets Rammed 1 | . 1 . Kicked 1 | . 1 . Crushed . | . . . Highest Temperature 147 | . 147 . Average Temperature 47 | . 47 . Received Heat Transfer 219 | . 48 171 Siege Activations . | . . . Robots Corrupted . | . . . Combat Hostiles . | . . . Parts Fried . | . . . Impact Corruptions . | . . . Robots Melted . | . . . Combat Hostiles . | . . . Parts Melted . | . . . Heat Transferred . | . . . Parts Sabotaged . | . . . Parts Stolen . | . . . Parts Stripped . | . . . Power Chain Reactions . | . . . Alert | -11 -10 -10 ------- Run | Yrd Mat Sub Peak Influence 200 | . 200 . Initial . | . . . Average 55 | . 58 . Maximum Alert Level 1 | . 1 . Low Security (%) 92 | 100 92 . Level 1 7 | . 7 . Level 2 . | . . . Level 3 . | . . . Level 4 . | . . . Level 5 . | . . . High Security . | . . . Max Security . | . . . Squads Dispatched . | . . . Investigation . | . . . Extermination . | . . . Reinforcement . | . . . Assault . | . . . Garrison . | . . . Intercept . | . . . Searches Triggered . | . . . Construction Impeded . | . . . Haulers Reinforced . | . . . Active Scanning Responses . | . . . Cargo Convoy Interrupts . | . . . Stealth | -11 -10 -10 --------- Run | Yrd Mat Sub Distress Signals 3 | . 3 . Communications Jammed . | . . . Distress Signals . | . . . Times Spotted 31 | . 18 13 Peak Tracking Total 10 | . 5 10 Tactical Retreats 4 | . 4 . Traps | -11 -10 -10 ------- Run | Yrd Mat Sub Traps Triggered 1 | . 1 . Indirectly . | . . . Trap Hack Attempts . | . . . Triggered . | . . . Disarmed . | . . . Reprogrammed . | . . . Reused . | . . . Traps Extracted . | . . . Installed . | . . . Triggered . | . . . Machines | -11 -10 -10 ---------- Run | Yrd Mat Sub Machines Disabled 2 | . 2 . Max in Single Turn 1 | . 1 . Machines Repaired . | . . . Machines Dismantled . | . . . Machines Sabotaged . | . . . Overloaded Fab Kills . | . . . Hacking | -11 -10 -10 --------- Run | Yrd Mat Sub Machines Accessed 7 | . 7 . Terminals 7 | . 7 . Fabricators . | . . . Repair Stations . | . . . Recycling Units . | . . . Scanalyzers . | . . . Garrison Access . | . . . Total Hacks 29 | . 29 . Successful 18 | . 18 . Failed 11 | . 11 . Catastrophic 1 | . 1 . Database Lockouts . | . . . Manual 15 | . 15 . Terminals 29 | . 29 . Fabricators . | . . . Repair Stations . | . . . Recycling Units . | . . . Scanalyzers . | . . . Garrison Access . | . . . Terminal Hacks 15 | . 15 . Record 1 | . 1 . Robot Analysis 3 | . 3 . Prototype ID Bank 1 | . 1 . Level Access Points 1 | . 1 . Branch Access Points 1 | . 1 . Unreport Threat 1 | . 1 . Locate Traps 1 | . 1 . Dispatch Records 1 | . 1 . Maintenance Status 1 | . 1 . Hauler Manifests 1 | . 1 . Zone Layout 3 | . 3 . Fabricator Hacks . | . . . Repair Station Hacks . | . . . Recycling Unit Hacks . | . . . Scanalyzer . | . . . Garrison Access Hacks . | . . . Unauthorized Hacks 3 | . 3 . Terminals 3 | . 3 . Botnet 3 | . 3 . Fabricators . | . . . Repair Stations . | . . . Recycling Units . | . . . Scanalyzers . | . . . Garrison Access . | . . . Data Cores Recovered . | . . . Used . | . . . Hacking Detections 7 | . 7 . Full Trace Events . | . . . Feedback Events . | . . . Feedback Blocked . | . . . Robot Schematics Acquired . | . . . Robots Built . | . . . Authchips . | . . . Time . | . . . Total Robot Build Rating . | . . . Part Schematics Acquired . | . . . Parts Built . | . . . Authchips . | . . . Time . | . . . Total Part Build Rating . | . . . Parts Repaired . | . . . Time . | . . . Parts Recycled . | . . . Recycled Matter . | . . . Retrieved Matter . | . . . Retrieved Components . | . . . Parts Scanalyzed . | . . . Part Schematics Acquired . | . . . Parts Damaged . | . . . Bothacking | -11 -10 -10 ------------ Run | Yrd Mat Sub Used RIF Installer . | . . . Robots Hacked . | . . . Non-combat . | . . . Combat . | . . . Robot Hacks Applied . | . . . Relay Couplers Released . | . . . Fabnet Peak Effective % . | . . . Robots Rewired . | . . . Allies Hacked . | . . . Hacks Repelled . | . . . Allies | -11 -10 -10 -------- Run | Yrd Mat Sub Total Allies . | . . . Largest Group . | . . . Highest-Rated Group . | . . . Highest-Rated Ally . | . . . Total Orders . | . . . Ally Attacks . | . . . Total Damage . | . . . Kills . | . . . Allies Corrupted . | . . . Allies Melted . | . . . Intel | -11 -10 -10 ------- Run | Yrd Mat Sub Robot Analysis Total 3 | . 3 . Derelict Logs Recovered . | . . . Drone Launches . | . . . Drone Recoveries . | . . . Exploration | -11 -10 -10 ------------- Run | Yrd Mat Sub Turns Passed 1609 | 69 1407 133 Spaces Moved 873 | 53 757 63 Core 22 | 22 . . Treads . | . . . Legs 851 | 31 757 63 Wheels . | . . . Hover . | . . . Flight . | . . . Fastest Speed 50 | 50 120 120 Average Speed 146 | 110 146 175 Slowest Speed 200 | 200 190 190 Overloaded Moves . | . . . Propulsion Burnouts . | . . . Robots Hopped . | . . . Cave-ins Triggered . | . . . Exploration Rate (%) 36 | 5 99 5 Regions Visited 2 Branch Regions 1 Pre-discovered Areas . | . . . Known Exits Taken . | . . . Unknown Exits Taken 2 | 1 1 . Scrap Searched . | . . . Spaces Dug 1 | . 1 . Terrain Destroyed 2 | . 1 1 Melee . | . . . Projectile 2 | . 1 1 AOE . | . . . Terrain Rammed . | . . . Walls Destroyed . | . . . Machines Disabled . | . . . Actions | -11 -10 -10 --------- Run | Yrd Mat Sub Total 1144 | 60 1006 78 Wait 205 | . 201 4 Move 871 | 52 756 63 Hop . | . . . Pick Up 11 | 2 8 1 Fast Attach 10 | 6 3 1 Attach . | . . . Detach . | . . . Swap 5 | . 3 2 Drop 10 | . 7 3 Fire 31 | . 27 4 Melee . | . . . Ram . | . . . Kick 1 | . 1 . Crush . | . . . Escape Stasis . | . . . Rewire . | . . . Trap . | . . . Miscellaneous . | . . . Route ------- -11/Scrapyard -10/Materials (discovered 5 exits: *Mat x3 / *Min / [*Sub]) -10/Subcaves History --------- Turn | Location | Event 30 | -11/Scrapyard | Discovered new exit (range 14) 70 | -11/Scrapyard | Entered Materials 133 | -10/Materials | Identified exit to Mines 302 | -10/Materials | Build established: Mutant 471 | -10/Materials | Discovered new exit (range 16) 865 | -10/Materials | Discovered new exit (range 15) 1049 | -10/Materials | Discovered new exit (range 4) 1065 | -10/Materials | Identified exit to Materials 1462 | -10/Materials | Discovered new exit (range 9) 1477 | -10/Materials | Entered Subcaves 1570 | -10/Subcaves | Ambushed by swarm of Subdwellers 1576 | -10/Subcaves | Ambushed by Subdweller buried in earth 1578 | -10/Subcaves | Ambushed by angry Subdweller bent on revenge 1579 | -10/Subcaves | Ambushed by Subdwellers from Twisted Machinery 1580 | -10/Subcaves | Ambushed by Subdweller buried in earth 1580 | -10/Subcaves | Ambushed by Subdweller buried in earth 1580 | -10/Subcaves | Ambushed by Subdweller buried in earth 1597 | -10/Subcaves | Core integrity fell below 50% 1603 | -10/Subcaves | Core integrity fell below 20% 1610 | -10/Subcaves | Destroyed by 57-PG3(R) with Subdweller Shrapnel Launcher Last Messages --------------- 2R-BL7(h) destroyed. Aluminum Leg destroyed. BV-M62(R) affixes Scrap Shield Fragment to Scrap Shield. 5L-H8R(R) affixes Scrap Shield Fragment to Scrap Shield. The unstable cave ceiling collapses. Imp. Light Cannon destroyed. Acquired Carbon-fiber Leg. PF-BCL(R) destroyed. Acquired 23 matter. Dropped Aluminum Leg. Acquired 14 matter. BV-M62(R) affixes Scrap Shield Fragment to Scrap Shield. Critical hit (Destroy). Carbon-fiber Leg destroyed. Imp. Light Cannon destroyed. Structural Scanner destroyed. Carbon-fiber Leg destroyed. Map ----- +----------------------------------------------------+ | ?????????????????###????????????????????????? | | ??????????????? ## ????????????????????????? | | ?????????????? % ## ###????????????????????? | | ????????????? ####???????????????????? | | ????????????? % #"####?????????????????? | | ????????????? " "##########??????????? | | ???????????? % %[""%& ########??????????? | | ??????????## % %*%!* # ###?????????? | | ??????????## % % ###?????????? | | ??????????## % % ###????????? | | ????????????????## # R% ###????????? | | ????????????????###??## ##????????? | | ?????????????????????##; R R ####????????? | | ?????????????????????## R % ###????????? | | ?????????????????????## RR= # ###?????????? | | ????????????????????### ; &!% ###?????????? | | ????????????????????### ; =!R# ###??????????? | | ???????????????????### R ####??????????? | | ???????????????????### ! ! ###???????????? | | ???????????????????## = ##????????????? | | ???????????????????### [%= ;##????????????? | | ???????????????????## %! ##????????????? | | ???????????????????### = ##????????????? | | ???????????????????###; ##????????????? | | ???????????????????## ; ;###????????????? | | ???????????????????## @ ##????????????? | | ???????????????????## #?????????????? | | ?????????????????#### ;#?????????????? | | ????????????????##### ##; ;#?????????????? | | ????????????????### #;; #?????????????? | | ????????????????## ;; ;##?????????????? | | ????????????????## % ;#?????????????? | | ??????????????######## ;##?????????????? | | ??????????????######## ###?????????????? | | ??????????????## #### ##??????????????? | | ??????????????## ### ##??????????????? | | ??????????????### #### ####????????????? | | ????????????#### # ## ####????????????? | | ????????????### # ## ##????????????? | | ????????????## ! ##????????????? | | ?????????##### ] ##????????????? | | ???????#### # ##### ##????????????? | | ???????## ####### ####????????????? | | ???????## ?###### ####????????????? | | ???????## ???????###### ##??????????????? | | ???????# ??????? ###### ###?????????????? | | ?????????????????????#### ##?????????????? | | ???????????????????????## ##?????????????? | | ????????????????????????? ##?????????????? | | ????????????????????????# ##?????????????? | +----------------------------------------------------+ Best States ------------- Heat Dissipation 25 Energy Generation 12 Energy Capacity 265 Matter Stores 300 Matter Capacity 300 Sight Range 16 Terrain Scan Density 10 Resistance: KI 20 Resistance: TH 20 Resistance: EX 20 Resistance: EM 20 Resistance: I 20 Resistance: S 20 Resistance: P 20 Evasion (%) 55 Offensive Hacking 10 Item Schematics ----------------- None Robot Schematics ------------------ None Fabricated ------------ Nothing Alien Tech Used ----------------- None Achievements -------------- None Challenges ------------ None Game ------ Seed FrostCompositeSpecial Manual? 0 Play Time 00:18:20 Cumulative 171.4 hours Start 2024.06.08 @ 17:49:35 End 2024.06.08 @ 18:09:04 Sessions 1 Manual Loads 0 Difficulty Adventurer Special Mode None Game No. 129 Rogue 72 Adventurer 57 Explorer 0 Win Type - Total 1 Types 1/0/0/0/0/0/0/0/0 Lore% 44 Gallery% 59 Achievement% 46 Wizard Run 0 Options --------- Layout 1 ASCII 0 Keyboard 0 Movement Mouse Keybinds 0 Fullscreen 1 Font 16/SmallcapsGlow Map View 55x38 Zoom Use 0% Tactical HUD 0 Map Filters NONE Filters NONE Steam 1 RUN: bb3ccd1b-774e-4659-8aa1-dd080fb875d7